[Event "Queens Festival Final Team 2022"]
[Site "Tornelo"]
[Date "2022.06.26"]
[Round "5.1"]
[White "Perez Rodriguez, Jennifer"]
[Black "Subramanian, Anusha"]
[Result "1-0"]
[ECO "C01"]
[WhiteElo "2251"]
[BlackElo "1671"]
[Annotator "TA"]
[PlyCount "95"]
[EventDate "2022.06.24"]
[EventType "team-tourn"]
[EventCountry "NET"]
[SourceTitle "playchess.com"]
[Source "ChessBase"]
[SourceQuality "1"]
[WhiteTeam "Paraguay"]
[BlackTeam "England"]
[WhiteTeamCountry "PAR"]
[BlackTeamCountry "ENG"]
[TimeControl "180+2"]

{[%evp 9,94,-12,21,15,19,-18,36,3,25,0,0,0,2,-12,-7,-5,0,-31,39,37,31,23,44,28,41,33,36,39,12,12,81,-22,-12,-81,27,18,0,-18,46,-4,-6,-47,-43,-66,-51,-110,-64,-76,-77,-149,-85,-127,-9,-20,247,-21,0,0,337,7,7,0,55,0,0,-17,69,77,129,80,414,0,0,0,1026,3,29997,197,194,150,29995,29996,29997,29998,29998,29999,29999]} 1. e4 {[%emt 0:00:02]} e6 {[%emt 0:00:04]} 2. d4 {[%emt 0:00:03]} d5 {[%emt 0:00:02]} 3. Bd3 {[%emt 0:00:02]} dxe4 {[%emt 0:00:01]} 4. Bxe4 {[%emt 0:00:01]} Nf6 {[%emt 0:00:02]} 5. Bf3 {[%emt 0:00:01]} c6 {[%emt 0:00:05]} 6. Ne2 {[%emt 0:00:02] C01: French: Exchange Variation.} Bd6 {[%emt 0:00:04]} 7. c4 {[%emt 0:00:01]} Qc7 {[%emt 0:00:09]} (7... O-O $11) 8. Nbc3 {[%emt 0:00:02] White is slightly better.} (8. c5 $5 {[%cal Rc5d6]} Be7 9. Bf4 $14) 8... b6 {[%emt 0:00:02]} 9. g3 {[%emt 0:00:07]} Bb7 {[%emt 0:00:02]} 10. O-O $1 {[%emt 0:00:08]} Nbd7 {[%emt 0:00:03] [#]} 11. a3 $146 {[%emt 0:00:06]} ({Predecessor:} 11. b3 O-O 12. Qc2 a6 13. Bf4 e5 14. dxe5 Nxe5 15. Bxe5 Bxe5 16. Rad1 Rad8 17. Ne4 c5 18. Nxf6+ Bxf6 {½-½ (18) Nuber,B (2089)-Leckner,H (1994) Bayern 2008}) 11... O-O {[%emt 0:00:05]} 12. Bg2 {[%emt 0:00:12]} a6 {[%emt 0:00:08]} 13. b4 {[%emt 0:00:25]} a5 {[%emt 0:00:24]} (13... c5 $15 14. Bxb7 Qxb7) 14. c5 $36 {[%emt 0:00:05][%mdl 2048] White has the initiative.} Be7 {[%emt 0:00:12]} 15. Bf4 {[%emt 0:00:06]} Qc8 {[%emt 0:00:21]} 16. Qb3 {[%emt 0:00:09]} Nd5 {[%emt 0:00:53]} 17. Nxd5 {[%emt 0:00:04]} exd5 {[%emt 0:00:06]} 18. Rfb1 {[%emt 0:00:21]} Ba6 {[%emt 0:00:04]} 19. Nc3 {[%emt 0:00:05]} Bf6 {[%emt 0:00:06]} (19... axb4 $11 20. axb4 Bc4) 20. Rd1 {[%emt 0:00:11] White is more active.} (20. b5 $16 {Black must now prevent bxc6.} Bxd4 21. bxa6 Nxc5 22. Qc2 (22. Qxb6 Rxa6 23. Qb2 Na4 $11)) 20... Bc4 $11 {[%emt 0:00:09]} 21. Qc2 {[%emt 0:00:05]} (21. Qb2 $1 $11) 21... Qb7 {[%emt 0:00:05]} (21... axb4 $17 22. axb4 Rxa1 23. Rxa1 Bxd4) 22. Rab1 {[%emt 0:00:32] Strongly threatening b5.} axb4 {[%emt 0:00:16]} 23. axb4 {[%emt 0:00:02][%cal Oc3e4]} (23. Rxb4 $5 {[%cal Rf4d6]} Rxa3 24. cxb6 $11) 23... Ra7 {[%emt 0:00:05] [#]} (23... b5 $1 $11) 24. Bf1 {[%emt 0:00:11]} (24. Ne4 $1 $14) 24... Bxf1 {[%emt 0:00:07]} 25. Kxf1 {[%emt 0:00:01]} b5 {[%emt 0:00:02]} 26. Rb2 {[%emt 0:00:07]} Rfa8 {[%emt 0:00:01]} 27. g4 {[%emt 0:00:02]} ({White should play} 27. Ne2 $15) 27... Ra1 {[%emt 0:00:03]} (27... Nf8 $17 28. Ne2 Ne6) 28. Rxa1 $15 {[%emt 0:00:03]} Rxa1+ {[%emt 0:00:02]} 29. Kg2 {[%emt 0:00:00]} (29. Rb1 $142 Qa8 30. Ne2) 29... Qc8 {[%emt 0:00:05]} (29... Bxd4 $142 30. Qd3 Bf6) 30. Qd2 {[%emt 0:00:08]} Nb8 {[%emt 0:00:03]} ({Better is} 30... Nf8 $17 31. h3 h5) 31. h3 {[%emt 0:00:02]} (31. Bxb8 $5 Qxb8 32. g5 $11) 31... Qb7 $2 {[%emt 0:00:04][%mdl 8192] [#]} (31... Nd7 $11) 32. Be3 $2 {[%emt 0:00:08]} ({Only move:} 32. Qe3 $1 $18 {[%cal Re3e8]} h6 33. Qe8+ Kh7 34. Qxb8 (34. Bxb8 Ra8 $11) 34... Qxb8 35. Bxb8) 32... Ra7 {[%emt 0:00:04]} 33. Ra2 {[%emt 0:00:03]} Qe7 $2 {[%emt 0:00:03][%mdl 8192] [#]} (33... h6 $11 {and Black is okay.}) 34. Rxa7 $2 {[%emt 0:00:03]} (34. g5 $1 $18 {[%cal Rg5f6]} Bxg5 35. Rxa7 (35. Bxg5 Rxa2 36. Nxa2 Qe4+ 37. Kh2 Na6 $18) 35... Qxa7 36. Bxg5) 34... Qxa7 $11 {[%emt 0:00:00]} 35. Ne2 {[%emt 0:00:04]} Qa3 {[%emt 0:00:02]} (35... Na6 $11) 36. Nf4 {[%emt 0:00:02]} (36. Bg5 $14 Nd7 37. Bxf6 Nxf6 38. Ng3) 36... Nd7 {[%emt 0:00:02]} 37. Nd3 {[%emt 0:00:04]} Qb3 {[%emt 0:00:03]} (37... h6 $11) 38. g5 $14 {[%emt 0:00:05]} Be7 {[%emt 0:00:02]} (38... Bd8 $142) 39. Bf4 $16 {[%emt 0:00:06]} g6 $2 {[%emt 0:00:04][%mdl 8192]} (39... Qa3 $16 {is a better chance.}) 40. Ne5 $2 {[%emt 0:00:03]} (40. Qe2 $18 Bf8 41. Ne5 Nxe5 42. Qxe5) 40... Nxe5 $11 {[%emt 0:00:02]} 41. Bxe5 {[%emt 0:00:00][%mdl 4096] Endgame KQB-KQB} Qc4 $2 {[%emt 0:00:02][%mdl 8192]} (41... Qb1 $11) 42. Qf4 $2 {[%emt 0:00:05]} (42. Bd6 $18 Bf8 43. h4) 42... Bf8 {[%emt 0:00:01][%mdl 8192]} (42... Qxb4 $2 43. Qg4 Bxc5 44. dxc5 Qxg4+ 45. hxg4 $18) (42... Qe2 $11) 43. Qg4 $2 {[%emt 0:00:03]} (43. Qf6 {mates} Qf1+ 44. Kxf1 h6 45. Qh8#) 43... Qxb4 $18 {[%emt 0:00:03]} 44. Qc8 {[%emt 0:00:01] White wants to mate with Bd6.} Qc4 $2 {[%emt 0:00:02]} (44... Qd2 $16) 45. Bd6 {[%emt 0:00:03][%csl Gd6][%cal Rc8f8] White mates.} h5 {[%emt 0:00:05]} 46. Qxf8+ {[%emt 0:00:03]} Kh7 {[%emt 0:00:02]} 47. Qxf7+ {[%emt 0:00:01]} Kh8 {[%emt 0:00:01]} 48. Be5# {[%emt 0:00:01] Weighted Error Value: White=0.77/Black=0.94} 1-0

[Event "Queens Festival Final Team 2022"]
[Site "Tornelo"]
[Date "2022.06.26"]
[Round "5.1"]
[White "Grigoryan, Meri"]
[Black "Mayeregger Gonzalez, Fiorella"]
[Result "1-0"]
[ECO "D13"]
[WhiteElo "1993"]
[BlackElo "1284"]
[Annotator "NA RC"]
[PlyCount "89"]
[EventDate "2022.06.24"]
[EventType "team-tourn"]
[EventCountry "NET"]
[SourceTitle "playchess.com"]
[Source "ChessBase"]
[SourceQuality "1"]
[WhiteTeam "England"]
[BlackTeam "Paraguay"]
[WhiteTeamCountry "ENG"]
[BlackTeamCountry "PAR"]
[TimeControl "180+2"]

1. d4 {[%emt 0:00:04]} d5 {[%emt 0:00:05]} 2. c4 {[%emt 0:00:01]} c6 {[%emt 0:00:04]} 3. cxd5 {[%emt 0:00:01]} cxd5 {[%emt 0:00:02]} 4. Nc3 {[%emt 0:00:00]} Nf6 {[%emt 0:00:02]} 5. Nf3 {[%emt 0:00:00]} Nc6 {[%emt 0:00:03]} 6. Bf4 {[%emt 0:00:02]} a6 {[%emt 0:00:03]} 7. e3 {[%emt 0:00:00]} e6 {[%emt 0:00:03]} 8. Bd3 {[%emt 0:00:01]} h6 {[%emt 0:00:09]} 9. O-O {[%emt 0:00:01]} Bd6 {[%emt 0:00:01]} 10. Bg3 {[%emt 0:00:05]} O-O {[%emt 0:00:02]} 11. Rc1 {[%emt 0:00:02]} Qe7 {[%emt 0:00:10]} 12. Bh4 {[%emt 0:00:02]} Bd7 {[%emt 0:00:07]} 13. Bb1 {[%emt 0:00:01]} Rac8 {[%emt 0:00:03]} 14. a3 {[%emt 0:00:03]} Qd8 {[%emt 0:00:04]} 15. Qd3 {[%emt 0:00:01]} g6 {[%emt 0:00:05]} 16. Nd2 {[%emt 0:00:14]} Be7 {[%emt 0:00:02]} 17. f4 {[%emt 0:00:03]} Nh7 {[%emt 0:00:14]} 18. Bg3 {[%emt 0:00:05]} f5 {[%emt 0:00:03]} 19. Nf3 {[%emt 0:00:03]} Nf6 {[%emt 0:00:04]} 20. Ne5 {[%emt 0:00:02]} Nxe5 {[%emt 0:00:08]} 21. fxe5 {[%emt 0:00:02]} Ne4 {[%emt 0:00:02]} 22. Qe2 {[%emt 0:00:12]} Nxc3 {[%emt 0:00:04]} 23. Rxc3 {[%emt 0:00:09]} Bb5 {[%emt 0:00:01]} 24. Bd3 {[%emt 0:00:09]} Rxc3 {[%emt 0:00:09]} 25. Bxb5 {[%emt 0:00:17]} Rc7 {[%emt 0:00:14]} 26. Bd3 {[%emt 0:00:02]} Qc8 {[%emt 0:00:06]} 27. h4 {[%emt 0:00:04]} Rc1 {[%emt 0:00:07]} 28. Bf4 {[%emt 0:00:07]} Rxf1+ {[%emt 0:00:06]} 29. Qxf1 {[%emt 0:00:03]} g5 {[%emt 0:00:17]} 30. hxg5 {[%emt 0:00:04]} hxg5 {[%emt 0:00:02]} 31. Bg3 {[%emt 0:00:02]} Kg7 {[%emt 0:00:11]} 32. Qd1 {[%emt 0:00:04]} Rh8 {[%emt 0:00:05]} 33. Qb3 {[%emt 0:00:14]} Qc1+ {[%emt 0:00:05]} 34. Kf2 {[%emt 0:00:02]} Rh1 {[%emt 0:00:09]} 35. Qc2 {[%emt 0:00:32]} Qxc2+ {[%emt 0:00:07]} 36. Bxc2 {[%emt 0:00:01]} Rc1 {[%emt 0:00:03]} 37. Bd3 {[%emt 0:00:02]} Rc6 {[%emt 0:00:08]} 38. Ke2 {[%emt 0:00:02]} Rb6 {[%emt 0:00:08]} 39. b4 {[%emt 0:00:03]} Rc6 {[%emt 0:00:04]} 40. Be1 {[%emt 0:00:03]} g4 {[%emt 0:00:07]} 41. a4 {[%emt 0:00:02]} Rb6 {[%emt 0:00:09]} 42. b5 {[%emt 0:00:04]} axb5 {[%emt 0:00:20]} 43. axb5 {[%emt 0:00:02]} Kf7 {[%emt 0:00:05]} 44. Ba5 {[%emt 0:00:02]} Rxb5 {[%emt 0:00:03]} 45. Bxb5 {[%emt 0:00:03]} 1-0

[Event "Queens Festival Final Team 2022"]
[Site "Tornelo"]
[Date "2022.06.26"]
[Round "5.1"]
[White "Perez, Dalila"]
[Black "Posadas, Rayelynn"]
[Result "1-0"]
[ECO "D78"]
[WhiteElo "1799"]
[BlackElo "1648"]
[Annotator "NA RC"]
[PlyCount "63"]
[EventDate "2022.06.24"]
[EventType "team-tourn"]
[EventCountry "NET"]
[SourceTitle "playchess.com"]
[Source "ChessBase"]
[SourceQuality "1"]
[WhiteTeam "Paraguay"]
[BlackTeam "England"]
[WhiteTeamCountry "PAR"]
[BlackTeamCountry "ENG"]
[TimeControl "180+2"]

1. d4 {[%emt 0:00:02]} Nf6 {[%emt 0:00:12]} 2. Nf3 {[%emt 0:00:02]} g6 {[%emt 0:00:01]} 3. g3 {[%emt 0:00:02]} Bg7 {[%emt 0:00:00]} 4. Bg2 {[%emt 0:00:02]} O-O {[%emt 0:00:01]} 5. c4 {[%emt 0:00:01]} d5 {[%emt 0:00:03]} 6. O-O {[%emt 0:00:04]} Nbd7 {[%emt 0:00:13]} 7. Nc3 {[%emt 0:00:03]} c6 {[%emt 0:00:02]} 8. Bf4 {[%emt 0:00:07]} Nh5 {[%emt 0:00:06]} 9. Bc1 {[%emt 0:00:03]} dxc4 {[%emt 0:00:05]} 10. a4 {[%emt 0:00:20]} a5 {[%emt 0:00:05]} 11. e4 {[%emt 0:00:09]} b6 {[%emt 0:00:17]} 12. Qe2 {[%emt 0:00:04]} Qc7 {[%emt 0:00:07]} 13. Qxc4 {[%emt 0:00:04]} Ba6 {[%emt 0:00:03]} 14. Nb5 {[%emt 0:00:07]} Qb7 {[%emt 0:00:14]} 15. d5 {[%emt 0:00:21]} cxb5 {[%emt 0:00:02]} 16. axb5 {[%emt 0:00:02]} Rac8 {[%emt 0:00:03]} 17. Qb3 {[%emt 0:00:01]} Nc5 {[%emt 0:00:03]} 18. Qc4 {[%emt 0:00:06]} Nd7 {[%emt 0:00:40]} 19. Qe2 {[%emt 0:00:06]} Bxb5 {[%emt 0:00:06]} 20. Qxb5 {[%emt 0:00:02]} Rc5 {[%emt 0:00:02]} 21. Qb3 {[%emt 0:00:05]} Rfc8 {[%emt 0:00:02]} 22. Be3 {[%emt 0:00:02]} Rc2 {[%emt 0:00:07]} 23. Rfb1 {[%emt 0:00:03]} Nhf6 {[%emt 0:00:14]} 24. Nd4 {[%emt 0:00:01]} R2c4 {[%emt 0:00:07]} 25. Nc6 {[%emt 0:00:08]} Ne5 {[%emt 0:00:48]} 26. Nxe5 {[%emt 0:00:07]} Nxe4 {[%emt 0:00:02]} 27. Nc6 {[%emt 0:00:09]} b5 {[%emt 0:00:06]} 28. Rxa5 {[%emt 0:00:06]} Nc5 {[%emt 0:00:04]} 29. Qxb5 {[%emt 0:00:08]} Qxb5 {[%emt 0:00:03]} 30. Rxb5 {[%emt 0:00:00]} Nd3 {[%emt 0:00:02]} 31. Nxe7+ {[%emt 0:00:04]} Kf8 {[%emt 0:00:01]} 32. Nxc8 {[%emt 0:00:02]} 1-0

[Event "Queens Festival Final Team 2022"]
[Site "Tornelo"]
[Date "2022.06.26"]
[Round "5.1"]
[White "Catabay, Mae Katelyn Rose"]
[Black "Mayeregger Gonzalez, Renata"]
[Result "1-0"]
[ECO "A36"]
[WhiteElo "1321"]
[BlackElo "1461"]
[Annotator "NA RC"]
[PlyCount "129"]
[EventDate "2022.06.24"]
[EventType "team-tourn"]
[EventCountry "NET"]
[SourceTitle "playchess.com"]
[Source "ChessBase"]
[SourceQuality "1"]
[WhiteTeam "England"]
[BlackTeam "Paraguay"]
[WhiteTeamCountry "ENG"]
[BlackTeamCountry "PAR"]
[TimeControl "180+2"]

1. c4 {[%emt 0:00:02]} c5 {[%emt 0:00:08]} 2. Nc3 {[%emt 0:00:02]} e6 {[%emt 0:00:02]} 3. g3 {[%emt 0:00:03]} Nf6 {[%emt 0:00:02]} 4. Bg2 {[%emt 0:00:02]} Nc6 {[%emt 0:00:02]} 5. e3 {[%emt 0:00:02]} g6 {[%emt 0:00:06]} 6. Nge2 {[%emt 0:00:02]} Bg7 {[%emt 0:00:02]} 7. d4 {[%emt 0:00:02]} cxd4 {[%emt 0:00:08]} 8. exd4 {[%emt 0:00:02]} d6 {[%emt 0:00:04]} 9. Be3 {[%emt 0:00:02]} Bd7 {[%emt 0:00:02]} 10. O-O {[%emt 0:00:02]} O-O {[%emt 0:00:03]} 11. Rc1 {[%emt 0:00:03]} Ng4 {[%emt 0:00:02]} 12. h3 {[%emt 0:00:02]} Nxe3 {[%emt 0:00:01]} 13. fxe3 {[%emt 0:00:02]} Rc8 {[%emt 0:00:06]} 14. a3 {[%emt 0:00:15]} e5 {[%emt 0:00:02]} 15. d5 {[%emt 0:00:05]} Ne7 {[%emt 0:00:03]} 16. b3 {[%emt 0:00:14]} Nf5 {[%emt 0:00:04]} 17. Qd2 {[%emt 0:00:05]} Qg5 {[%emt 0:00:04]} 18. Ne4 {[%emt 0:00:20]} Qxe3+ {[%emt 0:00:28]} 19. Qxe3 {[%emt 0:00:03]} Nxe3 {[%emt 0:00:02]} 20. Rf3 {[%emt 0:00:02]} Nxg2 {[%emt 0:00:02]} 21. Kxg2 {[%emt 0:00:03]} Bf5 {[%emt 0:00:03]} 22. Nxd6 {[%emt 0:00:04]} Rcd8 {[%emt 0:00:03]} 23. Nxf5 {[%emt 0:00:02]} gxf5 {[%emt 0:00:07]} 24. Rxf5 {[%emt 0:00:01]} f6 {[%emt 0:00:02]} 25. Nc3 {[%emt 0:00:06]} Rfe8 {[%emt 0:00:07]} 26. Ne4 {[%emt 0:00:01]} Kf7 {[%emt 0:00:10]} 27. Rcf1 {[%emt 0:00:03]} Kg8 {[%emt 0:00:14]} 28. Nxf6+ {[%emt 0:00:03]} Bxf6 {[%emt 0:00:01]} 29. Rxf6 {[%emt 0:00:01]} e4 {[%emt 0:00:02]} 30. Re1 {[%emt 0:00:02]} Rd7 {[%emt 0:00:11]} 31. Rf4 {[%emt 0:00:02]} Rde7 {[%emt 0:00:08]} 32. Re3 {[%emt 0:00:08]} Re5 {[%emt 0:00:11]} 33. Kf2 {[%emt 0:00:04]} Kg7 {[%emt 0:00:09]} 34. Ke2 {[%emt 0:00:02]} Kg6 {[%emt 0:00:02]} 35. Kd2 {[%emt 0:00:05]} h5 {[%emt 0:00:04]} 36. Kc3 {[%emt 0:00:05]} Rg5 {[%emt 0:00:14]} 37. h4 {[%emt 0:00:10]} Rg4 {[%emt 0:00:04]} 38. Rxg4+ {[%emt 0:00:04]} hxg4 {[%emt 0:00:02]} 39. Kd4 {[%emt 0:00:01]} Kf5 {[%emt 0:00:02]} 40. h5 {[%emt 0:00:05]} a6 {[%emt 0:00:23]} 41. h6 {[%emt 0:00:03]} b6 {[%emt 0:00:08]} 42. h7 {[%emt 0:00:03]} a5 {[%emt 0:00:04]} 43. h8=Q {[%emt 0:00:03]} Rxh8 {[%emt 0:00:02]} 44. Rxe4 {[%emt 0:00:02]} Rh1 {[%emt 0:00:02]} 45. Rf4+ {[%emt 0:00:03]} Kg5 {[%emt 0:00:02]} 46. Ke5 {[%emt 0:00:01]} Re1+ {[%emt 0:00:07]} 47. Kd6 {[%emt 0:00:05]} Re3 {[%emt 0:00:01]} 48. b4 {[%emt 0:00:20]} Rxa3 {[%emt 0:00:05]} 49. bxa5 {[%emt 0:00:06]} bxa5 {[%emt 0:00:04]} 50. c5 {[%emt 0:00:02]} Rxg3 {[%emt 0:00:03]} 51. Rf2 {[%emt 0:00:06]} Rf3 {[%emt 0:00:02]} 52. Rg2 {[%emt 0:00:03]} a4 {[%emt 0:00:03]} 53. c6 {[%emt 0:00:01]} a3 {[%emt 0:00:02]} 54. c7 {[%emt 0:00:06]} Rc3 {[%emt 0:00:01]} 55. Kd7 {[%emt 0:00:05]} Kf4 {[%emt 0:00:02]} 56. c8=Q {[%emt 0:00:06]} Rxc8 {[%emt 0:00:03]} 57. Kxc8 {[%emt 0:00:01]} Kf3 {[%emt 0:00:01]} 58. Ra2 {[%emt 0:00:05]} Ke4 {[%emt 0:00:02]} 59. d6 {[%emt 0:00:03]} g3 {[%emt 0:00:02]} 60. d7 {[%emt 0:00:02]} Kf3 {[%emt 0:00:08]} 61. d8=Q {[%emt 0:00:03]} g2 {[%emt 0:00:00]} 62. Qd5+ {[%emt 0:00:03]} Kg3 {[%emt 0:00:02]} 63. Qxg2+ {[%emt 0:00:01]} Kh4 {[%emt 0:00:02]} 64. Rxa3 {[%emt 0:00:03]} Kh5 {[%emt 0:00:01]} 65. Rh3# {[%emt 0:00:01]} 1-0

[Event "Queens Festival Final Team 2022"]
[Site "Tornelo"]
[Date "2022.06.26"]
[Round "5.2"]
[White "Song, Yuxin"]
[Black "Alboredo, Julia"]
[Result "1-0"]
[ECO "B51"]
[WhiteElo "2317"]
[BlackElo "2252"]
[Annotator "TA"]
[PlyCount "101"]
[EventDate "2022.06.24"]
[EventType "team-tourn"]
[EventCountry "NET"]
[SourceTitle "playchess.com"]
[Source "ChessBase"]
[SourceQuality "1"]
[WhiteTeam "China"]
[BlackTeam "Brazil"]
[WhiteTeamCountry "CHN"]
[BlackTeamCountry "BRA"]
[TimeControl "180+2"]

{[%evp 12,101,25,21,25,35,53,49,52,57,55,43,57,62,68,28,24,0,0,-2,0,-200,-152,-140,-123,-116,-95,-172,-167,-213,-241,-230,-166,-172,-167,-159,-75,-156,-107,-83,-77,-79,0,0,20,-83,33,-125,131,95,116,119,158,162,185,193,293,289,295,283,799,295,29999,799,734,751,1730,1730,1455,1392,1527,1435,5214,5220,5022,5014,5114,1196,12726,12260,9287,5891,29973,29974,29976,29976,29978,29979,29977,29976,29990,29991]} 1. e4 {[%emt 0:00:02]} c5 {[%emt 0:00:05]} 2. Nf3 {[%emt 0:00:01]} Nc6 {[%emt 0:00:02]} 3. Bb5 {[%emt 0:00:02]} d6 {[%emt 0:00:05]} 4. O-O {[%emt 0:00:02]} Bd7 {[%emt 0:00:02]} 5. Re1 {[%emt 0:00:01]} a6 {[%emt 0:00:02]} 6. Bf1 {[%emt 0:00:01]} Bg4 {[%emt 0:00:01]} 7. c3 {[%emt 0:00:01]} g6 {[%emt 0:00:04] outshines the older 7...Nf6. B51: Sicilian: Moscow Variation (3 Bb5+) without 3...Bd7.} 8. d4 {[%emt 0:00:04]} Bxf3 {[%emt 0:00:04]} 9. gxf3 {[%emt 0:00:03]} cxd4 {[%emt 0:00:02] White is slightly better.} 10. cxd4 {[%emt 0:00:01]} e5 {[%emt 0:00:02]} 11. d5 {[%emt 0:00:04]} Nd4 {[%emt 0:00:02]} 12. Be3 {[%emt 0:00:25]} Bg7 {[%emt 0:00:02]} 13. Nd2 {[%emt 0:00:11]} Nf6 {[%emt 0:00:17]} 14. f4 {[%emt 0:00:31] Hoping for fxe5.} O-O {[%emt 0:00:10] [#]} 15. Bh3 $146 {[%emt 0:00:04] Against Rc8} ({Predecessor:} 15. fxe5 dxe5 16. f4 Nd7 17. fxe5 Bxe5 18. Nc4 Nb5 19. Nxe5 Nxe5 20. a4 Nd6 21. Bg2 {0-1 (32) Ansell,S (2380)-Wall,T (2370) Oxford 1998}) 15... Nh5 {[%emt 0:00:05]} 16. Bxd4 $2 {[%emt 0:00:37]} (16. fxe5 $11 {and White is okay.} Bxe5 17. Nf3 Nxf3+ 18. Qxf3) 16... exd4 {[%emt 0:00:00]} 17. Qg4 {[%emt 0:00:11]} Qf6 {[%emt 0:00:15]} 18. f5 {[%emt 0:00:12]} Rac8 {[%emt 0:00:06]} 19. fxg6 {[%emt 0:00:21]} (19. Bf1 $17) 19... hxg6 $19 {[%emt 0:00:05]} 20. Rac1 {[%emt 0:00:13]} (20. Nf3 $142) 20... Rxc1 {[%emt 0:00:06]} 21. Rxc1 {[%emt 0:00:01]} Nf4 {[%emt 0:00:03]} 22. Bf1 {[%emt 0:00:05]} Bh6 {[%emt 0:00:20]} 23. Rd1 {[%emt 0:00:05]} Qe5 {[%emt 0:00:11]} (23... Re8 $142 $1 24. Qf3 Rc8) 24. Qf3 {[%emt 0:00:15]} (24. Nf3 $142 Qxe4 25. Rxd4 Ne2+ 26. Bxe2 Qxe2 27. Rb4) 24... f5 {[%emt 0:00:07]} (24... Rc8 $142 {Strongly threatening ...Rc2.} 25. Nc4 Qg5+ 26. Kh1 b5 27. Nxd6 Rc7) 25. Nc4 {[%emt 0:00:03]} Qf6 {[%emt 0:01:00]} (25... fxe4 $6 26. Nxe5 exf3 27. Nxf3 $11) (25... Qxe4 $6 26. Qxe4 fxe4 27. Rxd4 $11) 26. exf5 {[%emt 0:00:02]} Qxf5 {[%emt 0:00:02]} ({Better is} 26... b5 $17 27. Na5 Qg5+ 28. Qg3 Rxf5) 27. Nxd6 $11 {[%emt 0:00:04]} Qc2 {[%emt 0:00:14]} 28. Kh1 {[%emt 0:00:06] [#]} ({Don't play} 28. Nxb7 d3 29. Bxd3 Qc8 $17) (28. Ne4 $11 {keeps the balance.}) 28... Nh5 {[%emt 0:00:12]} ({Much worse is} 28... Qxb2 $6 29. Ne4 $11) (28... Nh3 $1 $17 29. Qxh3 Qxd1) 29. Qg4 {[%emt 0:00:03]} (29. Bd3 $14 {stays ahead.} Rxf3 30. Bxc2) 29... Qxf2 $2 {[%emt 0:00:04][%mdl 8192]} (29... Rxf2 $17 {and life is bright.} 30. Qc8+ (30. Qe6+ $2 Kh7 $19) 30... Qxc8 31. Nxc8 Bf4) 30. Qxg6+ {[%emt 0:00:03]} Ng7 {[%emt 0:00:05] [#] ( -> ...Qf3+)} 31. Qg2 {[%emt 0:00:02] Really sharp! White is much more active.} ({But not} 31. Bg2 Rf6 32. Ne4 Rxg6 $14) 31... Qxg2+ {[%emt 0:00:02]} 32. Bxg2 {[%emt 0:00:02]} Be3 {[%emt 0:00:02]} 33. Nxb7 {[%emt 0:00:01] d6 is the strong threat.} Rb8 {[%emt 0:00:02]} (33... Ne8 {was called for.} 34. d6 Nf6) 34. d6 $18 {[%emt 0:00:02][%cal Bd5d6,Bd6d7,Bd7d8][%mdl 32]} Ne6 {[%emt 0:00:02]} 35. Bd5 {[%emt 0:00:02]} Kf7 {[%emt 0:00:02]} (35... Kg7 36. Bxe6 Rxb7) 36. Rf1+ $2 {[%emt 0:00:01]} (36. Nc5) 36... Ke8 $2 {[%emt 0:00:02]} (36... Kg7 $18 37. Bxe6 Rxb7) 37. Bxe6 {[%emt 0:00:03]} (37. Bc6# $142) 37... Rxb7 {[%emt 0:00:01][%mdl 4096] Endgame KRB-KRB} 38. d7+ {[%emt 0:00:01]} Ke7 {[%emt 0:00:02]} 39. Rf7+ {[%emt 0:00:01]} Kxe6 {[%emt 0:00:04]} 40. d8=N+ {[%emt 0:00:04]} Kd5 {[%emt 0:00:03]} 41. Rxb7 {[%emt 0:00:01]} d3 {[%emt 0:00:03]} 42. Rd7+ {[%emt 0:00:02]} Ke4 {[%emt 0:00:00]} 43. Ne6 {[%emt 0:00:03]} d2 {[%emt 0:00:01] [#]} 44. Nc5+ $1 {[%emt 0:00:01]} Bxc5 {[%emt 0:00:03]} (44... Kf5 45. Nb3) 45. Rxd2 {[%emt 0:00:02] KR-KB} a5 {[%emt 0:00:01]} 46. Kg2 {[%emt 0:00:01] h4 would kill now.} Ke3 {[%emt 0:00:01]} 47. Rc2 {[%emt 0:00:01] White mates.} Bd4 {[%emt 0:00:01]} 48. h4 {[%emt 0:00:02][%cal Bh2h4,Bh4h5][%mdl 32]} a4 {[%emt 0:00:01]} 49. h5 {[%emt 0:00:01]} Kd3 {[%emt 0:00:02] [#]} 50. Rf2 $1 {[%emt 0:00:06]} Bxb2 {[%emt 0:00:01]} (50... Bg7 51. Kf3) 51. Rxb2 {[%emt 0:00:02] White used his chance.  Weighted Error Value: White=0.60/Black=0.69} 1-0